fUSD/lending_fUSD_20241225
["ID","MTS","AMOUNT","RATE_DAILY","PERIOD"]
[346582146,1735113446426,-1941.71,0.00010066,2]
[346582147,1735113446450,-500.0,0.00010066,2]
[346582148,1735113446474,-1064.06,0.00010066,2]
[346582149,1735113446498,-500.0,0.00010066,2]
[346582150,1735113446522,-656.04,0.00010066,2]
[346582151,1735113446546,-2103.8,0.00010066,2]
[346582152,1735113446570,-6090.87,0.00010066,2]
[346582153,1735113446593,-4837.2,0.00010066,2]
[346582154,1735113446616,-1340.2,0.00010066,2]
[346582155,1735113446640,-954.06,0.00010066,2]
[346582156,1735113446663,-500.0,0.00010066,2]
[346582157,1735113446687,-500.0,0.00010067,2]
[346582158,1735113446710,-501.51,0.00010067,2]
[346582159,1735113446735,-500.0,0.00010067,2]
[346582160,1735113446760,-692.24,0.00010067,2]
[346582161,1735113446785,-500.0,0.00010067,2]
[346582162,1735113446807,-500.0,0.00010067,2]
[346582163,1735113446832,-500.0,0.00010067,2]
[346582164,1735113446856,-677.73,0.00010067,2]
[346582165,1735113446881,-977.87,0.00010067,2]
[346582166,1735113446905,-500.0,0.00010067,2]
[346582167,1735113446929,-500.0,0.00010067,2]
[346582168,1735113446953,-500.0,0.00010067,2]
[346582169,1735113446976,-500.0,0.00010067,2]
[346582170,1735113447000,-500.0,0.00010067,2]
[346582171,1735113447026,-573.91,0.00010067,2]
[346582172,1735113447051,-468.41489921,0.00010067,2]
[346582173,1735113447075,-500.0,0.00010067,2]
[346582174,1735113447100,-500.0,0.00010067,2]
[346582175,1735113447123,-590.21,0.00010067,2]
[346582176,1735113447146,-500.0,0.00010067,2]
[346582177,1735113447170,-694.6,0.00010067,2]
[346582178,1735113447195,-772.47,0.00010067,2]
[346582179,1735113447221,-217.03893874,0.00010067,2]
[346582180,1735113447246,-500.0,0.00010067,2]
[346582181,1735113447270,-708.47,0.00010067,2]
[346582182,1735113447294,-500.0,0.00010067,2]
[346582183,1735113447317,-952.67,0.00010067,2]
[346582184,1735113447341,-500.0,0.00010067,2]
[346582185,1735113447368,-560.24,0.00010067,2]
[346582186,1735113447394,-500.0,0.00010067,2]
[346582187,1735113447417,-500.0,0.00010067,2]
[346582188,1735113447442,-500.0,0.00010067,2]
[346582189,1735113447466,-459.09209812,0.00010067,2]
[346582190,1735113454887,3000.0,0.0001288,29]
[346582191,1735113454917,2200.0,0.0001288,29]
[346582192,1735113457156,250.0,9.254e-05,2]
[346582193,1735113462093,387.83,9.317e-05,2]
[346582194,1735113484369,5200.0,0.00017,30]
[346582195,1735113529792,250.0,9.238e-05,2]
[346582196,1735113544401,607.39,9.219e-05,2]
[346582197,1735113545740,1227.64,9.285e-05,2]
[346582200,1735113699294,500.0,9.186e-05,2]
[346582201,1735113739300,332.606,9.57e-05,2]
[346582205,1735113817552,654.83,9.208e-05,2]
[346582208,1735113823429,4019.61,9.281e-05,2]
[346582209,1735113828610,1000.0,9.212e-05,2]
[346582213,1735113859566,164.09,9.248e-05,2]
[346582364,1735114196043,680.01,8.219e-05,2]
[346582371,1735114231647,-300.0,9.69e-05,2]
[346582372,1735114231657,-265.1553,9.691e-05,2]
[346582373,1735114231667,-143.5664319,9.691e-05,2]
[346582374,1735114231679,-856.4335681,9.691e-05,2]
[346582375,1735114231688,-3861.2684,9.691e-05,2]
[346582376,1735114231698,-1000.0,9.692e-05,2]
[346582377,1735114231708,-391.1992,9.693e-05,2]
[346582378,1735114231718,-1585.01,9.79e-05,2]
[346582379,1735114231727,-120.44129832,9.79e-05,2]
[346582380,1735114231750,-1165.97870168,9.79e-05,2]
[346582381,1735114231759,-500.0,9.79e-05,2]
[346582382,1735114231768,-25.78265432,9.79e-05,2]
[346582383,1735114231791,-711.47500005,9.79e-05,2]
[346582384,1735114231802,-127.86234563,9.79e-05,2]
[346582385,1735114231811,-1070.53765437,9.79e-05,2]
[346582386,1735114231822,-929.64434,9.79e-05,2]
[346582387,1735114231846,-856.04257068,9.79e-05,2]
[346582388,1735114231857,-342.76543495,9.79e-05,2]
[346582389,1735114231866,-550.51,9.79e-05,2]
[346582390,1735114231875,-500.0,9.79e-05,2]
[346582391,1735114231884,-7188.00713421,9.79e-05,2]
[346582392,1735114231897,-289.61983502,9.79e-05,2]
[346582393,1735114231932,-320.59791901,9.79e-05,2]
[346582395,1735114237667,-653.67901261,9.79e-05,2]
[346582396,1735114237705,-4167.97685387,9.79e-05,2]
[346582397,1735114237831,-1072.491,9.79e-05,2]
[346582398,1735114237860,-1507.62824528,9.79e-05,2]
[346582399,1735114237870,-3462.2,9.79e-05,2]
[346582400,1735114237879,-2224.23,9.79e-05,2]
[346582401,1735114237888,-1902.37,9.79e-05,2]
[346582402,1735114237897,-2291.73,9.79e-05,2]
[346582403,1735114237908,-2781.16817835,9.79e-05,2]
[346582404,1735114237928,-1477.05,9.79e-05,2]
[346582405,1735114237968,-1162.51182165,9.79e-05,2]
[346582406,1735114237978,-843.72449882,9.79e-05,2]
[346582407,1735114237989,-795.79550118,9.79e-05,2]
[346582408,1735114237999,-4192.14745882,9.79e-05,2]
[346583142,1735114249760,-117.73254118,9.79e-05,2]
[346583144,1735114249770,-2955.40560736,9.79e-05,2]
[346583146,1735114249781,-753.69950238,9.79e-05,2]
[346583151,1735114249818,-812.91489026,9.79e-05,2]
[346583153,1735114249826,-2368.43,9.79e-05,2]
[346583155,1735114249835,-1428.18,9.79e-05,2]
[346583157,1735114249844,-763.3854519,9.79e-05,2]
[346583237,1735114250602,-1247.26203136,9.79e-05,2]
[346583262,1735114250822,-10486.89251674,9.79e-05,2]
[346583265,1735114250837,-686.07,9.79e-05,2]
[346583267,1735114250852,-561.36,9.79e-05,2]
[346583270,1735114250866,-500.0,9.79e-05,2]
[346583273,1735114250881,-1686.6,9.79e-05,2]
[346583275,1735114250896,-1728.91,9.79e-05,2]
[346583278,1735114250914,-3212.43,9.79e-05,2]
[346583280,1735114250929,-1826.13,9.79e-05,2]
[346583283,1735114250943,-1740.60748326,9.79e-05,2]
[346584924,1735114399459,318.937,9.57e-05,2]
[346584925,1735114424260,282.48,9.177e-05,2]
[346584927,1735114437568,250.0,9.175e-05,2]
[346584932,1735114568062,295.95,9.146e-05,2]
[346584934,1735114606335,375.35,9.128e-05,2]
[346584935,1735114676718,250.0,9.128e-05,2]
[346584936,1735114694944,1000.0,9.128e-05,2]
[346584937,1735114745341,327.41,9.126e-05,2]
[346584938,1735114837069,218795.55483438,0.00019,120]
[346584939,1735114837093,5238.3171506,0.00019,120]
[346584941,1735115028663,305.36,9.57e-05,2]
[346584942,1735115062070,718.0669,9.591e-05,2]
[346584943,1735115121520,725.5,8.219e-05,2]
[346584944,1735115165384,300.694,9.57e-05,2]
[346584954,1735115317476,250.0,9.024e-05,2]
[346585361,1735115428209,63902.4854747,9.5e-05,2]
[346585374,1735115434165,-300.0,9.69e-05,2]
[346585375,1735115434175,-501.9575547,9.691e-05,2]
[346585376,1735115434185,-500.0,9.691e-05,2]
[346585377,1735115434194,-961.99217352,9.691e-05,2]
[346585378,1735115434227,-3046.5119227,9.691e-05,2]
[346585379,1735115434280,-831.532,9.691e-05,2]
[346585380,1735115434344,-1209.10423545,9.691e-05,2]
[346585381,1735115434452,-1727.4936,9.691e-05,2]
[346585382,1735115434464,-598.51129821,9.691e-05,2]
[346585582,1735115437968,-1527.93636976,9.691e-05,2]
[346585599,1735115440315,-5577.49671869,9.691e-05,2]
[346585602,1735115440335,-658.7300751,9.691e-05,2]
[346585817,1735115442926,-2285.82171714,9.691e-05,2]
[346585832,1735115445744,-982.1194004,9.691e-05,2]
[346585857,1735115461802,13417.5540169,9.6e-05,2]
[346585858,1735115505688,319.087,9.57e-05,2]
[346585859,1735115531293,311.0839,9.591e-05,2]
[346585860,1735115555480,250.0,9.019e-05,2]
[346585861,1735115566522,256.74,8.986e-05,2]
[346585863,1735115590738,87555.0,9.5e-05,2]
[346585864,1735115594401,3722.5455,9.591e-05,2]
[346585865,1735115618497,1000.0,9.002e-05,2]
[346585871,1735115649509,624.51,9.001e-05,2]
[346585872,1735115762274,1548.67,9.018e-05,2]
[346585873,1735115811815,3842.84,9.002e-05,2]
[346585874,1735115839450,1097.0,8.975e-05,2]
[346585875,1735115855882,718.0669,9.591e-05,2]
[346585876,1735115914431,166.71,9.259e-05,2]
[346585877,1735115939058,386.074,9.57e-05,2]
[346585878,1735115962612,166.28,7.397e-05,2]
[346585879,1735116003039,150.0,7.397e-05,2]
[346585880,1735116003270,150.0,7.397e-05,2]
[346585881,1735116003713,150.0,7.397e-05,2]
[346585882,1735116003896,150.0,7.397e-05,2]
[346585883,1735116004072,150.0,7.397e-05,2]
[346585884,1735116004290,150.0,7.397e-05,2]
[346585885,1735116004495,150.0,7.397e-05,2]
[346585886,1735116004652,150.0,7.397e-05,2]
[346585887,1735116004849,150.0,7.397e-05,2]
[346585888,1735116005539,150.0,7.397e-05,2]
[346585889,1735116005729,268.21817118,7.397e-05,2]
[346585890,1735116014371,2329.55,8.986e-05,2]
[346585891,1735116034069,1395.84,8.219e-05,2]
[346585892,1735116048884,167.2,8.979e-05,2]
[346585893,1735116064939,2000.0,8.979e-05,2]
[346585894,1735116082230,1793.826342,9.598e-05,2]
[346585895,1735116089530,250.0,8.995e-05,2]
[346585896,1735116178504,1932.69,8.985e-05,2]
[346585897,1735116227586,162.74,7.201e-05,2]
[346585898,1735116227958,162.74,8.101e-05,2]
[346585899,1735116228184,162.74,9.001e-05,2]
[346585900,1735116231131,500.0,9.545e-05,2]
[346585901,1735116270751,150.0,9.454e-05,2]
[346585902,1735116270954,150.0,9.571e-05,2]
[346585903,1735116271011,150.0,9.547e-05,2]
[346585904,1735116271100,150.0,9.565e-05,2]
[346585905,1735116271173,150.0,9.569e-05,2]
[346585906,1735116271220,150.0,9.545e-05,2]
[346585907,1735116332810,150.0,9.537e-05,2]
[346585908,1735116434314,500.0,8.847e-05,2]
[346585909,1735116443322,250.0,8.847e-05,2]
[346585910,1735116462904,23900.0,8.847e-05,2]
[346585912,1735116491965,1000.0,8.847e-05,2]
[346585913,1735116499630,837.77,8.842e-05,2]
[346585914,1735116504927,5997.94,8.842e-05,2]
[346585917,1735116561286,1500.0,8.823e-05,2]
[346585918,1735116570847,150.0,9.567e-05,2]
[346585919,1735116570904,150.0,9.543e-05,2]
[346585920,1735116571232,150.0,9.554e-05,2]
[346585921,1735116571293,150.0,9.56e-05,2]
[346585922,1735116584058,399.43,9.537e-05,2]
[346585923,1735116587375,370.049,9.57e-05,2]
[346585924,1735116610236,250.0,8.837e-05,2]
[346585925,1735116625222,10000.0,9.605e-05,10]
[346585942,1735116632064,-150.0,9.605e-05,2]
[346585943,1735116632073,-150.0,9.607e-05,2]
[346585944,1735116632082,-150.0,9.612e-05,2]
[346585945,1735116632091,-150.0,9.615e-05,2]
[346585946,1735116632101,-150.0,9.623e-05,2]
[346585947,1735116632110,-150.0,9.64e-05,2]
[346585948,1735116632119,-150.0,9.641e-05,2]
[346585949,1735116632129,-150.0,9.644e-05,2]
[346585950,1735116632138,-150.0,9.651e-05,2]
[346585951,1735116632147,-150.0,9.658e-05,2]
[346585952,1735116632157,-150.0,9.674e-05,2]
[346585953,1735116632166,-150.0,9.674e-05,2]
[346585954,1735116632175,-311.0839,9.684e-05,2]
[346585955,1735116632185,-53829.92009031,9.684e-05,2]
[346585956,1735116632212,-5419.68160969,9.684e-05,2]
[346585957,1735116632222,-1000.0,9.685e-05,2]
[346585958,1735116632231,-16483.1467,9.686e-05,2]
[346585959,1735116632241,-337.2236,9.686e-05,2]
[346585960,1735116632250,-5000.0,9.686e-05,2]
[346585961,1735116632260,-1000.0,9.686e-05,2]
[346585962,1735116632269,-4868.6419,9.687e-05,2]
[346585988,1735116632523,-500.0,9.687e-05,2]
[346585990,1735116632532,-1000.0,9.687e-05,2]
[346585992,1735116632541,-31398.8299,9.687e-05,2]
[346585994,1735116632550,-150.0,9.711e-05,2]
[346585996,1735116632560,-151.77475038,9.714e-05,2]
[346585997,1735116632569,-150.0,9.725e-05,2]
[346585999,1735116632578,-150.0,9.735e-05,2]
[346586001,1735116632588,-150.0,9.738e-05,2]
[346586003,1735116632597,-150.0,9.743e-05,2]
[346586005,1735116632606,-500.0,9.784e-05,2]
[346586007,1735116632616,-500.0,9.784e-05,2]
[346586009,1735116632625,-500.0,9.784e-05,2]
[346586011,1735116632634,-634.55,9.784e-05,2]
[346586013,1735116632643,-500.0,9.784e-05,2]
[346586015,1735116632652,-500.0,9.784e-05,2]
[346586017,1735116632663,-500.0,9.784e-05,2]
[346586019,1735116632672,-500.0,9.784e-05,2]
[346586021,1735116632682,-1000.5,9.784e-05,2]
[346586023,1735116632692,-500.0,9.784e-05,2]
[346586025,1735116632701,-651.12,9.784e-05,2]
[346586027,1735116632710,-500.0,9.784e-05,2]
[346586029,1735116632720,-500.0,9.784e-05,2]
[346586031,1735116632729,-500.0,9.784e-05,2]
[346586033,1735116632738,-500.0,9.784e-05,2]
[346586035,1735116632747,-501.44437474,9.784e-05,2]
[346586036,1735116632756,-500.0,9.784e-05,2]
[346586037,1735116632766,-501.11205636,9.784e-05,2]
[346586038,1735116632775,-500.0,9.784e-05,2]
[346586039,1735116632784,-500.0,9.784e-05,2]
[346586040,1735116632794,-500.0,9.784e-05,2]
[346586041,1735116632803,-500.0,9.784e-05,2]
[346586042,1735116632813,-500.0,9.784e-05,2]
[346586043,1735116632822,-501.96522645,9.784e-05,2]
[346586044,1735116632831,-500.0,9.784e-05,2]
[346586045,1735116632840,-584.86,9.784e-05,2]
[346586046,1735116632850,-561.74,9.784e-05,2]
[346586047,1735116632859,-8830.44,9.784e-05,2]
[346586048,1735116632870,-500.0,9.784e-05,2]
[346586049,1735116632879,-500.0,9.784e-05,2]
[346586050,1735116632888,-500.0,9.784e-05,2]
[346586051,1735116632898,-1691.21,9.784e-05,2]
[346586052,1735116632910,-500.0,9.784e-05,2]
[346586053,1735116632919,-675.26,9.784e-05,2]
[346586054,1735116632929,-500.0,9.784e-05,2]
[346586055,1735116632938,-500.0,9.784e-05,2]
[346586056,1735116632948,-500.0,9.784e-05,2]
[346586057,1735116632957,-153.897083,9.784e-05,2]
[346586058,1735116632966,-501.67616086,9.784e-05,2]
[346586059,1735116632975,-2263.893823,9.784e-05,2]
[346586060,1735116632984,-1157.37,9.784e-05,2]
[346586061,1735116632995,-561.86,9.784e-05,2]
[346586062,1735116633004,-501.83019583,9.784e-05,2]
[346586063,1735116633014,-500.0,9.784e-05,2]
[346586064,1735116633023,-2287.404819,9.784e-05,2]
[346586065,1735116633033,-744.97,9.784e-05,2]
[346586066,1735116633042,-500.0,9.784e-05,2]
[346586067,1735116633051,-3176.06,9.784e-05,2]
[346586068,1735116633062,-501.92630231,9.784e-05,2]
[346586069,1735116633072,-500.0,9.784e-05,2]
[346586070,1735116633081,-500.0,9.784e-05,2]
[346586071,1735116633092,-2058.6,9.784e-05,2]
[346586072,1735116633102,-500.0,9.784e-05,2]
[346586073,1735116633112,-692.34,9.784e-05,2]
[346586074,1735116633122,-500.0,9.784e-05,2]
[346586075,1735116633132,-500.0,9.784e-05,2]
[346586076,1735116633141,-967.96,9.784e-05,2]
[346586077,1735116633152,-501.96080945,9.784e-05,2]
[346586078,1735116633163,-500.0,9.784e-05,2]
[346586079,1735116633172,-510.57706647,9.784e-05,2]
[346586080,1735116633182,-919.7,9.784e-05,2]
[346586081,1735116633196,-500.0,9.784e-05,2]
[346586082,1735116633207,-1088.41,9.784e-05,2]
[346586083,1735116633218,-500.0,9.784e-05,2]
[346586084,1735116633228,-500.0,9.784e-05,2]
[346586085,1735116633240,-1991.44,9.784e-05,2]
[346586086,1735116633250,-500.0,9.784e-05,2]
[346586087,1735116633260,-506.59604339,9.784e-05,2]
[346586088,1735116633272,-568.32,9.784e-05,2]
[346586089,1735116633283,-4055.16,9.784e-05,2]
[346586090,1735116633293,-500.0,9.784e-05,2]
[346586091,1735116633303,-500.0,9.784e-05,2]
[346586092,1735116633313,-500.0,9.784e-05,2]
[346586093,1735116633322,-500.0,9.784e-05,2]
[346586094,1735116633332,-500.0,9.784e-05,2]
[346586095,1735116633341,-2390.24,9.784e-05,2]
[346586096,1735116633350,-500.0,9.784e-05,2]
[346586097,1735116633360,-502.08328553,9.784e-05,2]
[346586098,1735116633369,-500.0,9.784e-05,2]
[346586099,1735116633378,-1771.53,9.784e-05,2]
[346586100,1735116633388,-500.0,9.784e-05,2]
[346586101,1735116633398,-501.73409939,9.784e-05,2]
[346586102,1735116633409,-500.0,9.784e-05,2]
[346586103,1735116633419,-500.0,9.784e-05,2]
[346586104,1735116633428,-370.21004048,9.784e-05,2]
[346586105,1735116633437,-500.0,9.784e-05,2]
[346586106,1735116633447,-3415.05,9.784e-05,2]
[346586107,1735116633457,-498.15501651,9.784e-05,2]
[346586108,1735116633466,-500.0,9.784e-05,2]
[346586109,1735116633476,-500.0,9.784e-05,2]
[346586110,1735116633486,-2120.32,9.784e-05,2]
[346586111,1735116633496,-500.0,9.784e-05,2]
[346586112,1735116633506,-500.0,9.784e-05,2]
[346586113,1735116633516,-500.0,9.784e-05,2]
[346586114,1735116633526,-500.0,9.784e-05,2]
[346586115,1735116633535,-500.0,9.784e-05,2]
[346586116,1735116633545,-11682.57,9.784e-05,2]
[346586117,1735116633555,-2537.12,9.784e-05,2]
[346586118,1735116633564,-501.81594146,9.784e-05,2]
[346586119,1735116633574,-545.4,9.784e-05,2]
[346586120,1735116633583,-500.0,9.784e-05,2]
[346586121,1735116633593,-502.11262014,9.784e-05,2]
[346586122,1735116633602,-1518.97,9.784e-05,2]
[346586123,1735116633612,-500.0,9.784e-05,2]
[346586124,1735116633621,-500.0,9.784e-05,2]
[346586125,1735116633630,-1779.9,9.784e-05,2]
[346586126,1735116633639,-513.22,9.784e-05,2]
[346586127,1735116633649,-688.18,9.784e-05,2]
[346586128,1735116633659,-1232.82,9.784e-05,2]
[346586129,1735116633669,-500.0,9.784e-05,2]
[346586130,1735116633678,-4434.1,9.784e-05,2]
[346586131,1735116633688,-500.0,9.784e-05,2]
[346586132,1735116633698,-500.0,9.784e-05,2]
[346586133,1735116633707,-500.0,9.784e-05,2]
[346586134,1735116633716,-17755.91797682,9.784e-05,2]
[346586135,1735116637798,932.5,8.837e-05,2]
[346586138,1735116637968,-1269.26202318,9.784e-05,2]
[346586139,1735116637977,-500.0,9.784e-05,2]
[346586140,1735116637986,-829.07,9.784e-05,2]
[346586141,1735116637996,-2299.27,9.784e-05,2]
[346586142,1735116638005,-16.11024664,9.784e-05,2]
[346586143,1735116638022,-992.69,9.784e-05,2]
[346586144,1735116638074,-324.726,9.784e-05,2]
[346586145,1735116638193,-946.17375336,9.784e-05,2]
[346586146,1735116638207,-500.0,9.784e-05,2]
[346586147,1735116638216,-1376.71,9.784e-05,2]
[346586148,1735116638225,-2179.13,9.784e-05,2]
[346586149,1735116638235,-500.0,9.784e-05,2]
[346586150,1735116638245,-11907.64,9.784e-05,2]
[346586151,1735116638254,-500.0,9.784e-05,2]
[346586152,1735116638263,-500.0,9.784e-05,2]
[346586153,1735116638274,-741.75,9.784e-05,2]
[346586154,1735116638283,-500.0,9.784e-05,2]
[346586155,1735116638293,-506.7382543,9.784e-05,2]
[346586156,1735116638302,-500.0,9.784e-05,2]
[346586157,1735116638310,-500.0,9.784e-05,2]
[346586158,1735116638320,-8507.42,9.784e-05,2]
[346586159,1735116638329,-500.0,9.784e-05,2]
[346586160,1735116638339,-501.62339865,9.784e-05,2]
[346586161,1735116638348,-501.92795179,9.784e-05,2]
[346586162,1735116638357,-3317.94,9.784e-05,2]
[346586164,1735116638367,-2123.84,9.784e-05,2]
[346586166,1735116638375,-500.0,9.784e-05,2]
[346586168,1735116638384,-14566.67,9.784e-05,2]
[346586170,1735116638394,-500.0,9.784e-05,2]
[346586172,1735116638403,-1153.38,9.784e-05,2]
[346586174,1735116638413,-500.0,9.784e-05,2]
[346586176,1735116638422,-500.0,9.784e-05,2]
[346586178,1735116638432,-1823.11,9.784e-05,2]
[346586180,1735116638441,-500.0,9.784e-05,2]
[346586182,1735116638451,-2131.56,9.784e-05,2]
[346586184,1735116638460,-710.39,9.784e-05,2]
[346586186,1735116638470,-4810.43,9.784e-05,2]
[346586188,1735116638479,-500.0,9.784e-05,2]
[346586190,1735116638489,-500.0,9.784e-05,2]
[346586192,1735116638498,-501.29436997,9.784e-05,2]
[346586194,1735116638507,-612.94,9.784e-05,2]
[346586196,1735116638516,-5527.5,9.784e-05,2]
[346586198,1735116638525,-500.0,9.784e-05,2]
[346586200,1735116638534,-5194.87,9.784e-05,2]
[346586202,1735116638543,-506.85,9.784e-05,2]
[346586204,1735116638553,-4130.3,9.784e-05,2]
[346586206,1735116638562,-1571.21,9.784e-05,2]
[346586208,1735116638572,-500.0,9.784e-05,2]
[346586210,1735116638582,-779.48,9.784e-05,2]
[346586212,1735116638591,-2269.75,9.784e-05,2]
[346586214,1735116638600,-1986.23,9.784e-05,2]
[346586216,1735116638609,-500.0,9.784e-05,2]
[346586218,1735116638618,-18722.11,9.784e-05,2]
[346586220,1735116638628,-7159.77,9.784e-05,2]
[346586222,1735116638637,-500.0,9.784e-05,2]
[346586224,1735116638646,-1368.67,9.784e-05,2]
[346586226,1735116638655,-500.0,9.784e-05,2]
[346586228,1735116638665,-500.0,9.784e-05,2]
[346586230,1735116638674,-510.61519213,9.784e-05,2]
[346586232,1735116638683,-500.0,9.784e-05,2]
[346586233,1735116638692,-654.5,9.784e-05,2]
[346586234,1735116638702,-2901.62,9.784e-05,2]
[346586235,1735116638711,-11976.81,9.784e-05,2]
[346586236,1735116638720,-500.0,9.784e-05,2]
[346586237,1735116638729,-500.0,9.784e-05,2]
[346586238,1735116638738,-1616.32,9.784e-05,2]
[346586239,1735116638747,-657.49,9.784e-05,2]
[346586240,1735116638756,-775.41,9.784e-05,2]
[346586241,1735116638765,-500.0,9.784e-05,2]
[346586242,1735116638774,-3078.58,9.784e-05,2]
[346586243,1735116638783,-1426.07,9.784e-05,2]
[346586244,1735116638793,-603.57801002,9.784e-05,2]
[346586251,1735116640482,-97.30198998,9.784e-05,2]
[346586253,1735116640491,-453.48246462,9.784e-05,2]
[346586263,1735116642997,-46.51753538,9.784e-05,2]
[346586264,1735116643006,-500.0,9.784e-05,2]
[346586265,1735116643015,-514.17962462,9.784e-05,2]
[346586272,1735116646167,-457.43357383,9.784e-05,2]
[346586273,1735116646179,-193.76680155,9.784e-05,2]
[346586274,1735116646188,-1750.04,9.784e-05,2]
[346586275,1735116646201,-500.0,9.784e-05,2]
[346586276,1735116646210,-500.0,9.784e-05,2]
[346586277,1735116646220,-730.6,9.784e-05,2]
[346586278,1735116646228,-633.29,9.784e-05,2]
[346586279,1735116646239,-4079.59,9.784e-05,2]
[346586280,1735116646248,-500.0,9.784e-05,2]
[346586281,1735116646257,-8462.51,9.784e-05,2]
[346586283,1735116646267,-500.0,9.784e-05,2]
[346586284,1735116646277,-657.59,9.784e-05,2]
[346586286,1735116646286,-500.0,9.784e-05,2]
[346586288,1735116646295,-1611.21,9.784e-05,2]
[346586290,1735116646304,-971.22,9.784e-05,2]
[346586292,1735116646313,-1851.97,9.784e-05,2]
[346586294,1735116646322,-2514.38,9.784e-05,2]
[346586296,1735116646331,-834.39,9.784e-05,2]
[346586298,1735116646340,-34.07799845,9.784e-05,2]
[346586351,1735116683828,2044.22,8.967e-05,2]
[346586352,1735116691620,150.0,9.557e-05,2]
[346586353,1735116691797,150.0,9.46e-05,2]
[346586354,1735116749630,321.131,9.586e-05,2]
[346586355,1735116811109,150.0,9.527e-05,2]
[346586356,1735116811148,150.0,9.493e-05,2]
[346586357,1735116811181,150.0,9.573e-05,2]
[346586358,1735116811234,150.0,9.6e-05,2]
[346586359,1735116811280,150.0,9.459e-05,2]
[346586360,1735116811322,150.0,9.458e-05,2]
[346586361,1735116811385,150.0,9.426e-05,2]
[346586362,1735116811443,150.0,9.526e-05,2]
[346586363,1735116811521,150.0,9.498e-05,2]
[346586364,1735116811575,150.0,9.41e-05,2]
[346586365,1735116811609,150.0,9.464e-05,2]
[346586366,1735116811663,150.0,9.586e-05,2]
[346586367,1735116811710,150.0,9.536e-05,2]
[346586368,1735116811749,150.0,9.445e-05,2]
[346586369,1735116812024,150.0,9.483e-05,2]
[346586370,1735116816160,166.28,7.397e-05,2]
[346586371,1735116846685,387.83,8.955e-05,2]
[346586372,1735116930789,150.0,9.417e-05,2]
[346586373,1735116930836,150.0,9.576e-05,2]
[346586374,1735116930875,150.0,9.535e-05,2]
[346586375,1735116930917,150.0,9.519e-05,2]
[346586376,1735116930966,150.0,9.435e-05,2]
[346586377,1735116931000,150.0,9.588e-05,2]
[346586378,1735116931064,150.0,9.593e-05,2]
[346586379,1735116931125,150.0,9.563e-05,2]
[346586380,1735116931176,150.0,9.518e-05,2]
[346586381,1735116931232,150.0,9.432e-05,2]
[346586382,1735116931297,150.0,9.372e-05,2]
[346586383,1735116931427,150.0,9.529e-05,2]
[346586384,1735116931492,150.0,9.402e-05,2]
[346586385,1735116961240,1398.51,8.219e-05,2]
[346586386,1735117089238,162.74,7.087e-05,2]
[346586387,1735117118030,2000.0,8.851e-05,2]
[346586388,1735117177847,2032.0516,9.585e-05,2]
[346586389,1735117232748,150.0,9.531e-05,2]
[346586390,1735117232854,150.0,9.561e-05,2]
[346586391,1735117240809,354.639,9.3e-05,2]
[346586392,1735117279349,467.2,8.85e-05,2]
[346586393,1735117290734,150.0,9.504e-05,2]
[346586394,1735117290790,150.0,9.476e-05,2]
[346586395,1735117291069,150.0,9.486e-05,2]
[346586396,1735117291143,150.0,9.463e-05,2]
[346586397,1735117291225,150.0,9.599e-05,2]
[346586398,1735117291278,150.0,9.515e-05,2]
[346586399,1735117291349,150.0,9.495e-05,2]
[346586400,1735117291396,150.0,9.496e-05,2]
[346586401,1735117291435,150.0,9.448e-05,2]
[346586402,1735117291507,150.0,9.458e-05,2]
[346586403,1735117291541,150.0,9.419e-05,2]
[346586404,1735117348607,23900.0,8.865e-05,2]
[346586405,1735117378392,500.0,8.729e-05,2]